Department Family,Entity,Date,Expense Type,Expense Area,Supplier,Transaction Number,AP Amount,Description,Supplier Postcode,Purchase Invoice Number
Department of Health,NHS North East Lincolnshire CCG,4/30/2022,Health Promotion,COMMISSIONING SCHEMES,ROXTON PRACTICE,40484332,"68,000.00",https://nww.einvoice-prod.sbs.nhs.uk:8179/invoicepdf/be28cfb1-7fb6-5d05-8aac-42a4eeb58ad6,DN40 1JW,5564
Department of Health,NHS North East Lincolnshire CCG,4/30/2022,Clinical&Medical-Independent Sector,PLANNED CARE,ST HUGHS HOSPITAL,40484392,"37,919.53",,DN32 9RP,NHSNELCGJM110222JMRI
Department of Health,NHS North East Lincolnshire CCG,4/30/2022,Clinical&Medical-Commercial Sector,PLANNED CARE,ST HUGHS HOSPITAL,40484396,"102,714.65",,DN32 9RP,NHSNELCGM110222
Department of Health,NHS North East Lincolnshire CCG,4/30/2022,C&M-PMS Funding Differential Review,LOCAL ENHANCED SERVICES,CARE PLUS GROUP LTD,40484429,"25,000.00",https://nww.einvoice-prod.sbs.nhs.uk:8179/invoicepdf/441e09ab-9279-5b7c-a70e-4ebc91f19184,DN32 7DH,17089
Department of Health,NHS North East Lincolnshire CCG,4/30/2022,Clinical&Medical-Clinical Other,PATIENT TRANSPORT,THAMES AMBULANCE SERVICE LTD,40518472,"88,508.06",https://nww.einvoice-prod.sbs.nhs.uk:8179/invoicepdf/650d80c9-29a6-536d-bc9e-1371a29044b7,LN6 3AH,22632
Department of Health,NHS North East Lincolnshire CCG,4/30/2022,Clinical&Medical-Clinical Other,PATIENT TRANSPORT,THAMES AMBULANCE SERVICE LTD,40518475,"28,611.06",https://nww.einvoice-prod.sbs.nhs.uk:8179/invoicepdf/21e2b209-e404-5408-97be-f6043a114641,LN6 3AH,22634
Department of Health,NHS North East Lincolnshire CCG,4/30/2022,Clinical&Medical-Independent Sector,OUT OF HOURS,CORE CARE LINKS,40545562,"120,270.10",https://nww.einvoice-prod.sbs.nhs.uk:8179/invoicepdf/677508dd-3cf5-5e32-9640-22a644c3aece,DN34 5LP,1316
Department of Health,NHS North East Lincolnshire CCG,4/30/2022,Clinical&Medical-Clinical Other,PRC DELEGATED CO-COMMISSIONING,NAVIGO,40545563,"3,750.00",,DN32 0QE,SALINV6993
Department of Health,NHS North East Lincolnshire CCG,4/30/2022,Clinical&Medical-Not For Profit,DEMENTIA,NAVIGO,40545563,"109,196.00",,DN32 0QE,SALINV6993
Department of Health,NHS North East Lincolnshire CCG,4/30/2022,Clinical&Medical-Not For Profit,MENTAL HEALTH CONTRACTS,NAVIGO,40545563,"2,018,922.00",https://nww.einvoice-prod.sbs.nhs.uk:8179/invoicepdf/7e3ab59a-e1f9-56fc-b604-19bdd000c727,DN32 0QE,SALINV6993
Department of Health,NHS North East Lincolnshire CCG,4/30/2022,Clinical&Medical-Not For Profit,MENTAL HEALTH CONTRACTS,NAVIGO,40545563,"210,270.00",,DN32 0QE,SALINV6993
Department of Health,NHS North East Lincolnshire CCG,4/30/2022,Soc Care-Other Soc Care,ASC SLA/CONTRACTS,NAVIGO,40545563,"254,847.00",,DN32 0QE,SALINV6993
Department of Health,NHS North East Lincolnshire CCG,4/30/2022,Professional Fees,ASC TRANSFORMATION,CERT FOUNDATION CIC,40545570,"38,000.00",,DN18 5JR,1032
Department of Health,NHS North East Lincolnshire CCG,4/30/2022,LPF Management Fees,PRIMARY CARE IT,N3I LTD,40545575,"47,283.66",https://nww.einvoice-prod.sbs.nhs.uk:8179/invoicepdf/5269684b-0fc6-5fc7-8e60-01fc37de6506,HU3 4AE,892
Department of Health,NHS North East Lincolnshire CCG,4/30/2022,Clinical&Medical-Independent Sector,COMMUNITY SERVICES,FRESHNEY PELHAM CARE LTD,40545578,"112,750.00",https://nww.einvoice-prod.sbs.nhs.uk:8179/invoicepdf/434078a4-0097-564f-8a88-4a7e9a9f00f8,DN34 4GB,1990
Department of Health,NHS North East Lincolnshire CCG,4/30/2022,Clinical&Medical-Voluntary Sector,HOSPICES,ST ANDREWS HOSPICE,40545583,"152,796.00",https://nww.einvoice-prod.sbs.nhs.uk:8179/invoicepdf/fe45d62e-35dc-5633-9b33-3fad762e889b,DN32 9RP,222301
Department of Health,NHS North East Lincolnshire CCG,4/30/2022,Clinical&Medical-Not For Profit,COMMUNITY SERVICES,FOCUS INDEPENDENT ADULT SOCIAL WORK CIC,40545585,"17,699.80",http://nww.docserv.wyss.nhs.uk/synergyiim/dist/?val=4471668_17879689_20220401133608,DN31 1SY,4540
Department of Health,NHS North East Lincolnshire CCG,4/30/2022,Clinical&Medical-Not For Profit,COMMUNITY SERVICES,FOCUS INDEPENDENT ADULT SOCIAL WORK CIC,40545585,"88,499.00",,DN31 1SY,4540
Department of Health,NHS North East Lincolnshire CCG,4/30/2022,Soc Care-Other Soc Care,ASC SLA/CONTRACTS,FOCUS INDEPENDENT ADULT SOCIAL WORK CIC,40545585,"251,049.60",http://nww.docserv.wyss.nhs.uk/synergyiim/dist/?val=4471668_17879689_20220401133608,DN31 1SY,4540
Department of Health,NHS North East Lincolnshire CCG,4/30/2022,Soc Care-Other Soc Care,ASC SLA/CONTRACTS,FOCUS INDEPENDENT ADULT SOCIAL WORK CIC,40545585,"1,311,498.00",,DN31 1SY,4540
Department of Health,NHS North East Lincolnshire CCG,4/30/2022,C&M-PMS Contract Value,PRC DELEGATED CO-COMMISSIONING,WOODFORD MEDICAL CENTRE,40566579,"81,821.57",Expend Balance - PMS Baseline (PMS),DN34 4GB,G07000057394
Department of Health,NHS North East Lincolnshire CCG,4/30/2022,C&M-PMS DES Learn Dsblty Hlth Chk,PRC DELEGATED CO-COMMISSIONING,WOODFORD MEDICAL CENTRE,40566579,840.00,Learning Disability Hlth Chk DES (PMS),DN34 4GB,G07000057394
Department of Health,NHS North East Lincolnshire CCG,4/30/2022,C&M-PMS PCN DES Participation,PRC DELEGATED CO-COMMISSIONING,WOODFORD MEDICAL CENTRE,40566579,"2,937.32",C&M-PMS PCN DES Participation,DN34 4GB,G07000057394
Department of Health,NHS North East Lincolnshire CCG,4/30/2022,C&M-PMS WEIGHT MANAGEMENT SERVICE,PRC DELEGATED CO-COMMISSIONING,WOODFORD MEDICAL CENTRE,40566579,11.50,PMS Weight Management Service,DN34 4GB,G07000057394
Department of Health,NHS North East Lincolnshire CCG,4/30/2022,C&M- PCN DES CARE HOME PREMIUM,PRC DELEGATED CO-COMMISSIONING,HUMBERVIEW SURGERY,40566586,"2,560.00",C&M-APMS PCN DES Care Home Premium,DN313AE,G07000057456
Department of Health,NHS North East Lincolnshire CCG,4/30/2022,C&M-APMS Contract Value,PRC DELEGATED CO-COMMISSIONING,HUMBERVIEW SURGERY,40566586,"15,984.97",ESS Serv - Contract Payments (APMS),DN313AE,G07000057456
Department of Health,NHS North East Lincolnshire CCG,4/30/2022,C&M-APMS DES Extended Hours Access,PRC DELEGATED CO-COMMISSIONING,HUMBERVIEW SURGERY,40566586,"4,679.04",Extended Hours,DN313AE,G07000057456
Department of Health,NHS North East Lincolnshire CCG,4/30/2022,C&M-APMS PCN DES Clinical Director,PRC DELEGATED CO-COMMISSIONING,HUMBERVIEW SURGERY,40566586,"2,391.50",C&M-APMS PCN DES Clinical Director,DN313AE,G07000057456
Department of Health,NHS North East Lincolnshire CCG,4/30/2022,C&M-APMS PCN DES PCN support,LOCAL ENHANCED SERVICES,HUMBERVIEW SURGERY,40566586,"4,874.00",C&M-APMS PCN DES PCN support,DN313AE,G07000057456
Department of Health,NHS North East Lincolnshire CCG,4/30/2022,C&M-APMS PCN DES Participation,PRC DELEGATED CO-COMMISSIONING,HUMBERVIEW SURGERY,40566586,597.96,C&M-APMS PCN DES Participation,DN313AE,G07000057456
Department of Health,NHS North East Lincolnshire CCG,4/30/2022,C&M-APMS WEIGHT MANAGEMENT SERVICE,PRC DELEGATED CO-COMMISSIONING,HUMBERVIEW SURGERY,40566586,34.50,APMS Weight Management Service,DN313AE,G07000057456
Department of Health,NHS North East Lincolnshire CCG,4/30/2022,C&M-PMS Contract Value,PRC DELEGATED CO-COMMISSIONING,LITTLEFIELD,40566591,"46,202.77",Expend Balance - PMS Baseline (PMS),DN34 4GB,G07000057745
Department of Health,NHS North East Lincolnshire CCG,4/30/2022,C&M-PMS DES Learn Dsblty Hlth Chk,PRC DELEGATED CO-COMMISSIONING,LITTLEFIELD,40566591,560.00,Learning Disability Hlth Chk DES (PMS),DN34 4GB,G07000057745
Department of Health,NHS North East Lincolnshire CCG,4/30/2022,C&M-PMS PCN DES Participation,PRC DELEGATED CO-COMMISSIONING,LITTLEFIELD,40566591,"1,638.80",C&M-PMS PCN DES Participation,DN34 4GB,G07000057745
Department of Health,NHS North East Lincolnshire CCG,4/30/2022,C&M-PMS WEIGHT MANAGEMENT SERVICE,PRC DELEGATED CO-COMMISSIONING,LITTLEFIELD,40566591,23.00,PMS Weight Management Service,DN34 4GB,G07000057745
Department of Health,NHS North East Lincolnshire CCG,4/30/2022,C&M-APMS Contract Value,PRC DELEGATED CO-COMMISSIONING,QUAYSIDE OPEN ACCESS CENTRE,40566597,"24,849.15",ESS Serv - Contract Payments (APMS),DN313EF,G07000057913
Department of Health,NHS North East Lincolnshire CCG,4/30/2022,C&M-APMS PCN DES Participation,PRC DELEGATED CO-COMMISSIONING,QUAYSIDE OPEN ACCESS CENTRE,40566597,418.50,C&M-APMS PCN DES Participation,DN313EF,G07000057913
Department of Health,NHS North East Lincolnshire CCG,4/30/2022,C&M-APMS Contract Value,PRC DELEGATED CO-COMMISSIONING,OPEN DOOR,40566608,"20,733.00",Add Serv (Contract Payment) (APMS),DN32 7DL,G07000058047
Department of Health,NHS North East Lincolnshire CCG,4/30/2022,C&M-APMS Contract Value,PRC DELEGATED CO-COMMISSIONING,OPEN DOOR,40566608,"16,208.26",ESS Serv - Contract Payments (APMS),DN32 7DL,G07000058047
Department of Health,NHS North East Lincolnshire CCG,4/30/2022,C&M-APMS DES Learn Dsblty Hlth Chk,PRC DELEGATED CO-COMMISSIONING,OPEN DOOR,40566608,420.00,Learning Disability Hlth Chk DES (APMS),DN32 7DL,G07000058047
Department of Health,NHS North East Lincolnshire CCG,4/30/2022,C&M-APMS PCN DES Participation,PRC DELEGATED CO-COMMISSIONING,OPEN DOOR,40566608,263.81,C&M-APMS PCN DES Participation,DN32 7DL,G07000058047
Department of Health,NHS North East Lincolnshire CCG,4/30/2022,C&M-PMS Contract Value,PRC DELEGATED CO-COMMISSIONING,PELHAM MEDICAL CENTRE,40566609,"82,439.77",Expend Balance - PMS Baseline (PMS),DN31 1QZ,G07000058087
Department of Health,NHS North East Lincolnshire CCG,4/30/2022,C&M-PMS PCN DES Participation,PRC DELEGATED CO-COMMISSIONING,PELHAM MEDICAL CENTRE,40566609,"2,911.78",C&M-PMS PCN DES Participation,DN31 1QZ,G07000058087
Department of Health,NHS North East Lincolnshire CCG,4/30/2022,C&M-PMS PCO Doctors Ret Scheme,PRC DELEGATED CO-COMMISSIONING,PELHAM MEDICAL CENTRE,40566609,"1,333.28",Doctors Retainer Scheme (PMS),DN31 1QZ,G07000058087
Department of Health,NHS North East Lincolnshire CCG,4/30/2022,C&M-PMS WEIGHT MANAGEMENT SERVICE,PRC DELEGATED CO-COMMISSIONING,PELHAM MEDICAL CENTRE,40566609,80.50,PMS Weight Management Service,DN31 1QZ,G07000058087
Department of Health,NHS North East Lincolnshire CCG,4/30/2022,ME - PMS GP Prior Year ERs,PRC DELEGATED CO-COMMISSIONING,PELHAM MEDICAL CENTRE,40566609,"2,207.51",GP Prior Year ERs (PMS),DN31 1QZ,G07000058087
Department of Health,NHS North East Lincolnshire CCG,4/30/2022,ME-PMS GP Prior Year AVCs,PRC DELEGATED CO-COMMISSIONING,PELHAM MEDICAL CENTRE,40566609,216.80,GP Prior Year AVCs (PMS),DN31 1QZ,G07000058087
Department of Health,NHS North East Lincolnshire CCG,4/30/2022,ME-PMS GP Prior Year EEs,PRC DELEGATED CO-COMMISSIONING,PELHAM MEDICAL CENTRE,40566609,"2,017.90",GP Prior Year EEs (PMS),DN31 1QZ,G07000058087
Department of Health,NHS North East Lincolnshire CCG,4/30/2022,C&M- PCN DES CARE HOME PREMIUM,PRC DELEGATED CO-COMMISSIONING,DR R MATHEWS,40566613,"4,490.00",C&M-PMS PCN DES Care Home Premium,DN313AE,G07000058241
Department of Health,NHS North East Lincolnshire CCG,4/30/2022,C&M-PMS Contract Value,PRC DELEGATED CO-COMMISSIONING,DR R MATHEWS,40566613,"34,786.69",Expend Balance - PMS Baseline (PMS),DN313AE,G07000058241
Department of Health,NHS North East Lincolnshire CCG,4/30/2022,C&M-PMS DES Extended Hours Access,PRC DELEGATED CO-COMMISSIONING,DR R MATHEWS,40566613,"5,599.44",Extended Hours Access DES (PMS),DN313AE,G07000058241
Department of Health,NHS North East Lincolnshire CCG,4/30/2022,C&M-PMS DES Learn Dsblty Hlth Chk,PRC DELEGATED CO-COMMISSIONING,DR R MATHEWS,40566613,140.00,Learning Disability Hlth Chk DES (PMS),DN313AE,G07000058241
Department of Health,NHS North East Lincolnshire CCG,4/30/2022,C&M-PMS PCN DES Clinical Director,PRC DELEGATED CO-COMMISSIONING,DR R MATHEWS,40566613,"2,861.89",C&M-PMS PCN DES Clinical Director,DN313AE,G07000058241
Department of Health,NHS North East Lincolnshire CCG,4/30/2022,C&M-PMS PCN DES PCN support,LOCAL ENHANCED SERVICES,DR R MATHEWS,40566613,"5,832.75",C&M-PMS PCN DES PCN support,DN313AE,G07000058241
Department of Health,NHS North East Lincolnshire CCG,4/30/2022,C&M-PMS PCN DES Participation,PRC DELEGATED CO-COMMISSIONING,DR R MATHEWS,40566613,"1,253.54",C&M-PMS PCN DES Participation,DN313AE,G07000058241
Department of Health,NHS North East Lincolnshire CCG,4/30/2022,C&M-PMS WEIGHT MANAGEMENT SERVICE,PRC DELEGATED CO-COMMISSIONING,DR R MATHEWS,40566613,34.50,PMS Weight Management Service,DN313AE,G07000058241
Department of Health,NHS North East Lincolnshire CCG,4/30/2022,C&M-PMS Contract Value,PRC DELEGATED CO-COMMISSIONING,BIRKWOOD MEDICAL CENTRE,40566617,"70,144.94",Expend Balance - PMS Baseline (PMS),DN34 5DX,G07000058317
Department of Health,NHS North East Lincolnshire CCG,4/30/2022,C&M-PMS PCN DES Participation,PRC DELEGATED CO-COMMISSIONING,BIRKWOOD MEDICAL CENTRE,40566617,"2,581.38",C&M-PMS PCN DES Participation,DN34 5DX,G07000058317
Department of Health,NHS North East Lincolnshire CCG,4/30/2022,C&M-PMS WEIGHT MANAGEMENT SERVICE,PRC DELEGATED CO-COMMISSIONING,BIRKWOOD MEDICAL CENTRE,40566617,11.50,PMS Weight Management Service,DN34 5DX,G07000058317
Department of Health,NHS North East Lincolnshire CCG,4/30/2022,C&M-PMS Contract Value,PRC DELEGATED CO-COMMISSIONING,CLEE MEDICAL CENTRE,40566621,"138,405.66",Expend Balance - PMS Baseline (PMS),DN35 7XE,G07000058405
Department of Health,NHS North East Lincolnshire CCG,4/30/2022,C&M-PMS PCN DES Participation,PRC DELEGATED CO-COMMISSIONING,CLEE MEDICAL CENTRE,40566621,"5,028.78",C&M-PMS PCN DES Participation,DN35 7XE,G07000058405
Department of Health,NHS North East Lincolnshire CCG,4/30/2022,C&M-PMS Prem Rates,PRC DELEGATED CO-COMMISSIONING,CLEE MEDICAL CENTRE,40566621,"2,380.25",Rates - non domestic (PMS),DN35 7XE,G07000058405
Department of Health,NHS North East Lincolnshire CCG,4/30/2022,C&M-PMS Prem Water Rates,PRC DELEGATED CO-COMMISSIONING,CLEE MEDICAL CENTRE,40566621,66.83,Rates - Water (PMS),DN35 7XE,G07000058405
Department of Health,NHS North East Lincolnshire CCG,4/30/2022,C&M-PMS WEIGHT MANAGEMENT SERVICE,PRC DELEGATED CO-COMMISSIONING,CLEE MEDICAL CENTRE,40566621,11.50,PMS Weight Management Service,DN35 7XE,G07000058405
Department of Health,NHS North East Lincolnshire CCG,4/30/2022,C&M-PMS Contract Value,PRC DELEGATED CO-COMMISSIONING,CHANTRY HEALTH GROUP,40566625,"53,354.55",Expend Balance - PMS Baseline (PMS),DN31 1QZ,G07000058549
Department of Health,NHS North East Lincolnshire CCG,4/30/2022,C&M-PMS DES Learn Dsblty Hlth Chk,PRC DELEGATED CO-COMMISSIONING,CHANTRY HEALTH GROUP,40566625,"2,520.00",Learning Disability Hlth Chk DES (PMS),DN31 1QZ,G07000058549
Department of Health,NHS North East Lincolnshire CCG,4/30/2022,C&M-PMS PCN DES Participation,PRC DELEGATED CO-COMMISSIONING,CHANTRY HEALTH GROUP,40566625,"1,919.96",C&M-PMS PCN DES Participation,DN31 1QZ,G07000058549
Department of Health,NHS North East Lincolnshire CCG,4/30/2022,C&M-PMS Prem Rates,PRC DELEGATED CO-COMMISSIONING,CHANTRY HEALTH GROUP,40566625,"1,570.50",Rates - non domestic (PMS),DN31 1QZ,G07000058549
Department of Health,NHS North East Lincolnshire CCG,4/30/2022,C&M-PMS WEIGHT MANAGEMENT SERVICE,PRC DELEGATED CO-COMMISSIONING,CHANTRY HEALTH GROUP,40566625,"1,472.00",PMS Weight Management Service,DN31 1QZ,G07000058549
Department of Health,NHS North East Lincolnshire CCG,4/30/2022,C&M-PMS Contract Value,PRC DELEGATED CO-COMMISSIONING,DR AP KUMAR,40566630,"29,408.48",Expend Balance - PMS Baseline (PMS),DN31 3AE,G07000058700
Department of Health,NHS North East Lincolnshire CCG,4/30/2022,C&M-PMS DES Learn Dsblty Hlth Chk,PRC DELEGATED CO-COMMISSIONING,DR AP KUMAR,40566630,280.00,Learning Disability Hlth Chk DES (PMS),DN31 3AE,G07000058700
Department of Health,NHS North East Lincolnshire CCG,4/30/2022,C&M-PMS PCN DES Participation,PRC DELEGATED CO-COMMISSIONING,DR AP KUMAR,40566630,"1,089.62",C&M-PMS PCN DES Participation,DN31 3AE,G07000058700
Department of Health,NHS North East Lincolnshire CCG,4/30/2022,C&M-PMS Prem Rates,PRC DELEGATED CO-COMMISSIONING,DR AP KUMAR,40566630,654.25,Rates - non domestic (PMS),DN31 3AE,G07000058700
Department of Health,NHS North East Lincolnshire CCG,4/30/2022,C&M-PMS Contract Value,PRC DELEGATED CO-COMMISSIONING,DR OZ QURESHI,40566634,"38,039.13",Expend Balance - PMS Baseline (PMS),DN35 0LN,G07000058744
Department of Health,NHS North East Lincolnshire CCG,4/30/2022,C&M-PMS PCN DES Participation,PRC DELEGATED CO-COMMISSIONING,DR OZ QURESHI,40566634,"1,281.52",C&M-PMS PCN DES Participation,DN35 0LN,G07000058744
Department of Health,NHS North East Lincolnshire CCG,4/30/2022,C&M-PMS PCO Other,PRC DELEGATED CO-COMMISSIONING,DR OZ QURESHI,40566634,555.20,C&M-PMS PCO - CQC reimbursement,DN35 0LN,G07000058744
Department of Health,NHS North East Lincolnshire CCG,4/30/2022,C&M-PMS Prem Rates,PRC DELEGATED CO-COMMISSIONING,DR OZ QURESHI,40566634,952.87,Rates - non domestic (PMS),DN35 0LN,G07000058744
Department of Health,NHS North East Lincolnshire CCG,4/30/2022,C&M-PMS Contract Value,PRC DELEGATED CO-COMMISSIONING,DR P SURESH BABU & PARTNERS,40566638,"22,949.19",Expend Balance - PMS Baseline (PMS),DN329SW,G07000058751
Department of Health,NHS North East Lincolnshire CCG,4/30/2022,C&M-PMS DES Learn Dsblty Hlth Chk,PRC DELEGATED CO-COMMISSIONING,DR P SURESH BABU & PARTNERS,40566638,700.00,Learning Disability Hlth Chk DES (PMS),DN329SW,G07000058751
Department of Health,NHS North East Lincolnshire CCG,4/30/2022,C&M-PMS PCN DES Participation,PRC DELEGATED CO-COMMISSIONING,DR P SURESH BABU & PARTNERS,40566638,779.30,C&M-PMS PCN DES Participation,DN329SW,G07000058751
Department of Health,NHS North East Lincolnshire CCG,4/30/2022,C&M-PMS Prem Rates,PRC DELEGATED CO-COMMISSIONING,DR P SURESH BABU & PARTNERS,40566638,548.00,Rates - non domestic (PMS),DN329SW,G07000058751
Department of Health,NHS North East Lincolnshire CCG,4/30/2022,C&M-PMS WEIGHT MANAGEMENT SERVICE,PRC DELEGATED CO-COMMISSIONING,DR P SURESH BABU & PARTNERS,40566638,57.50,PMS Weight Management Service,DN329SW,G07000058751
Department of Health,NHS North East Lincolnshire CCG,4/30/2022,C&M-PMS Contract Value,PRC DELEGATED CO-COMMISSIONING,LYNTON PRACTICE LTD,40566640,"39,461.34",Expend Balance - PMS Baseline (PMS),DN35 0LN,G07000058798
Department of Health,NHS North East Lincolnshire CCG,4/30/2022,C&M-PMS DES Learn Dsblty Hlth Chk,PRC DELEGATED CO-COMMISSIONING,LYNTON PRACTICE LTD,40566640,140.00,Learning Disability Hlth Chk DES (PMS),DN35 0LN,G07000058798
Department of Health,NHS North East Lincolnshire CCG,4/30/2022,C&M-PMS PCN DES Participation,PRC DELEGATED CO-COMMISSIONING,LYNTON PRACTICE LTD,40566640,"1,370.54",C&M-PMS PCN DES Participation,DN35 0LN,G07000058798
Department of Health,NHS North East Lincolnshire CCG,4/30/2022,C&M-PMS Prem Rates,PRC DELEGATED CO-COMMISSIONING,LYNTON PRACTICE LTD,40566640,952.88,Rates - non domestic (PMS),DN35 0LN,G07000058798
Department of Health,NHS North East Lincolnshire CCG,4/30/2022,C&M-PMS Contract Value,PRC DELEGATED CO-COMMISSIONING,FIELDHOUSE MEDICAL GROUP,40566644,"102,121.97",Expend Balance - PMS Baseline (PMS),DN34 4GB,G07000058846
Department of Health,NHS North East Lincolnshire CCG,4/30/2022,C&M-PMS DES Learn Dsblty Hlth Chk,PRC DELEGATED CO-COMMISSIONING,FIELDHOUSE MEDICAL GROUP,40566644,140.00,Learning Disability Hlth Chk DES (PMS),DN34 4GB,G07000058846
Department of Health,NHS North East Lincolnshire CCG,4/30/2022,C&M-PMS PCN DES Participation,PRC DELEGATED CO-COMMISSIONING,FIELDHOUSE MEDICAL GROUP,40566644,"3,642.88",C&M-PMS PCN DES Participation,DN34 4GB,G07000058846
Department of Health,NHS North East Lincolnshire CCG,4/30/2022,C&M-PMS WEIGHT MANAGEMENT SERVICE,PRC DELEGATED CO-COMMISSIONING,FIELDHOUSE MEDICAL GROUP,40566644,103.50,PMS Weight Management Service,DN34 4GB,G07000058846
Department of Health,NHS North East Lincolnshire CCG,4/30/2022,ME - PMS GP Prior Year ERs,PRC DELEGATED CO-COMMISSIONING,FIELDHOUSE MEDICAL GROUP,40566644,"4,508.82",GP Prior Year ERs (PMS),DN34 4GB,G07000058846
Department of Health,NHS North East Lincolnshire CCG,4/30/2022,ME-PMS GP Prior Year EEs,PRC DELEGATED CO-COMMISSIONING,FIELDHOUSE MEDICAL GROUP,40566644,"4,232.90",GP Prior Year EEs (PMS),DN34 4GB,G07000058846
Department of Health,NHS North East Lincolnshire CCG,4/30/2022,C&M- PCN DES CARE HOME PREMIUM,PRC DELEGATED CO-COMMISSIONING,ROXTON PRACTICE,40566648,"3,830.00",C&M-PMS PCN DES Care Home Premium,DN40 1JW,G07000058918
Department of Health,NHS North East Lincolnshire CCG,4/30/2022,C&M-PMS Contract Value,PRC DELEGATED CO-COMMISSIONING,ROXTON PRACTICE,40566648,"299,909.75",Expend Balance - PMS Baseline (PMS),DN40 1JW,G07000058918
Department of Health,NHS North East Lincolnshire CCG,4/30/2022,C&M-PMS DES Extended Hours Access,PRC DELEGATED CO-COMMISSIONING,ROXTON PRACTICE,40566648,"4,598.88",Extended Hours Access DES (PMS),DN40 1JW,G07000058918
Department of Health,NHS North East Lincolnshire CCG,4/30/2022,C&M-PMS DES Learn Dsblty Hlth Chk,PRC DELEGATED CO-COMMISSIONING,ROXTON PRACTICE,40566648,"3,220.00",Learning Disability Hlth Chk DES (PMS),DN40 1JW,G07000058918
Department of Health,NHS North East Lincolnshire CCG,4/30/2022,C&M-PMS Dispensing Quality Sch,PRC DELEGATED CO-COMMISSIONING,ROXTON PRACTICE,40566648,"13,312.80",Dispensing Scheme (PMS),DN40 1JW,G07000058918
Department of Health,NHS North East Lincolnshire CCG,4/30/2022,C&M-PMS PCN DES Clinical Director,PRC DELEGATED CO-COMMISSIONING,ROXTON PRACTICE,40566648,"2,350.52",C&M-PMS PCN DES Clinical Director,DN40 1JW,G07000058918
Department of Health,NHS North East Lincolnshire CCG,4/30/2022,C&M-PMS PCN DES PCN support,LOCAL ENHANCED SERVICES,ROXTON PRACTICE,40566648,"4,790.50",C&M-PMS PCN DES PCN support,DN40 1JW,G07000058918
Department of Health,NHS North East Lincolnshire CCG,4/30/2022,C&M-PMS PCN DES Participation,PRC DELEGATED CO-COMMISSIONING,ROXTON PRACTICE,40566648,"10,780.90",C&M-PMS PCN DES Participation,DN40 1JW,G07000058918
Department of Health,NHS North East Lincolnshire CCG,4/30/2022,C&M-PMS Prem Actual Rent,PRC DELEGATED CO-COMMISSIONING,ROXTON PRACTICE,40566648,"4,850.53",Actual Rents (PMS),DN40 1JW,G07000058918
Department of Health,NHS North East Lincolnshire CCG,4/30/2022,C&M-PMS Prem Rates,PRC DELEGATED CO-COMMISSIONING,ROXTON PRACTICE,40566648,"5,284.50",Rates - non domestic (PMS),DN40 1JW,G07000058918
Department of Health,NHS North East Lincolnshire CCG,4/30/2022,C&M-PMS Prem Water Rates,PRC DELEGATED CO-COMMISSIONING,ROXTON PRACTICE,40566648,80.07,Rates - Water (PMS),DN40 1JW,G07000058918
Department of Health,NHS North East Lincolnshire CCG,4/30/2022,C&M-PMS WEIGHT MANAGEMENT SERVICE,PRC DELEGATED CO-COMMISSIONING,ROXTON PRACTICE,40566648,138.00,PMS Weight Management Service,DN40 1JW,G07000058918
Department of Health,NHS North East Lincolnshire CCG,4/30/2022,ME - PMS GP Prior Year ERs,PRC DELEGATED CO-COMMISSIONING,ROXTON PRACTICE,40566648,"1,950.67",GP Prior Year ERs (PMS),DN40 1JW,G07000058918
Department of Health,NHS North East Lincolnshire CCG,4/30/2022,ME-PMS GP Pension EEs-PMS,PRC DELEGATED CO-COMMISSIONING,ROXTON PRACTICE,40566648,"1,242.44",GP Pension EEs (PMS),DN40 1JW,G07000058918
Department of Health,NHS North East Lincolnshire CCG,4/30/2022,ME-PMS GP Pension ERs-PMS,PRC DELEGATED CO-COMMISSIONING,ROXTON PRACTICE,40566648,"1,232.15",GP Pension ERs (PMS),DN40 1JW,G07000058918
Department of Health,NHS North East Lincolnshire CCG,4/30/2022,ME-PMS GP Prior Year EEs,PRC DELEGATED CO-COMMISSIONING,ROXTON PRACTICE,40566648,"1,831.31",GP Prior Year EEs (PMS),DN40 1JW,G07000058918
Department of Health,NHS North East Lincolnshire CCG,4/30/2022,C&M-PMS Out of Hours Opt Outs,PRC DELEGATED CO-COMMISSIONING,ROXTON PRACTICE,40566653,"-14,228.42",OOH Pay (PMS),DN40 1JW,G07000058920
Department of Health,NHS North East Lincolnshire CCG,4/30/2022,ME - PMS GP Prior Year ERs,PRC DELEGATED CO-COMMISSIONING,ROXTON PRACTICE,40566653,"-1,232.26",GP Prior Year ERs (PMS),DN40 1JW,G07000058920
Department of Health,NHS North East Lincolnshire CCG,4/30/2022,ME-PMS GP Pension EEs-PMS,PRC DELEGATED CO-COMMISSIONING,ROXTON PRACTICE,40566653,"-17,584.44",GP Pension EEs (PMS),DN40 1JW,G07000058920
Department of Health,NHS North East Lincolnshire CCG,4/30/2022,ME-PMS GP Pension ERs-PMS,PRC DELEGATED CO-COMMISSIONING,ROXTON PRACTICE,40566653,"-17,898.84",GP Pension ERs (PMS),DN40 1JW,G07000058920
Department of Health,NHS North East Lincolnshire CCG,4/30/2022,ME-PMS GP Prior Year EEs,PRC DELEGATED CO-COMMISSIONING,ROXTON PRACTICE,40566653,"-1,242.51",GP Prior Year EEs (PMS),DN40 1JW,G07000058920
Department of Health,NHS North East Lincolnshire CCG,4/30/2022,Clinical&Medical-Clinical Other,PRC DELEGATED CO-COMMISSIONING,ROXTON PRACTICE,40568563,"44,000.00",https://nww.einvoice-prod.sbs.nhs.uk:8179/invoicepdf/237a95ca-5941-57a6-90d6-49f107db581a,DN40 1JW,5626
Department of Health,NHS North East Lincolnshire CCG,4/30/2022,Charges from CSU,CONTRACT MANAGEMENT,NHS NORTH OF ENGLAND CSU,40568591,"90,360.74",NHS CCG INCOME - SLA 44811016,WF3 1WE,7310025644
Department of Health,NHS North East Lincolnshire CCG,4/30/2022,Clinical&Medical-Commercial Sector,ACUTE COMMISSIONING,SPIRE HEALTHCARE LTD,40568611,"42,352.50",https://nww.einvoice-prod.sbs.nhs.uk:8179/invoicepdf/b5c461c5-c770-56c7-bbbd-cd94f6f748fa,RG1 9PL,03HHULICFPF222301
Department of Health,NHS North East Lincolnshire CCG,4/30/2022,Clinical&Medical-Commercial Sector,PLANNED CARE,ILLUMINA DIAGNOSTICS LTD,40568628,"87,279.00",https://nww.einvoice-prod.sbs.nhs.uk:8179/invoicepdf/2adb3ea3-7b4b-5b73-9b39-3a1b1dfb784f,DN40 1JW,22
Department of Health,NHS North East Lincolnshire CCG,4/30/2022,Clinical&Medical-Independent Sector,PLANNED CARE,HS PHYSIOTHERAPY LTD,40568658,"34,480.00",https://nww.einvoice-prod.sbs.nhs.uk:8179/invoicepdf/7100222f-36c0-5ac1-abdd-4cea8c15f69f,PE21 7TW,HSNEL0322
Department of Health,NHS North East Lincolnshire CCG,4/30/2022,Clinical&Medical-Commercial Sector,PLANNED CARE,360 CARE LTD,40568668,"66,327.64",,DN31 2BH,36182
Department of Health,NHS North East Lincolnshire CCG,4/30/2022,Charges from CSU,CONTRACT MANAGEMENT,NHS NORTH OF ENGLAND CSU,40568679,"-90,360.74",NHS CCG INCOME - SLA 44811016,WF3 1WE,7310025749
Department of Health,NHS North East Lincolnshire CCG,4/30/2022,Clinical&Medical-Clinical Other,PRC DELEGATED CO-COMMISSIONING,CARE PLUS GROUP LTD,40568682,"18,333.00",https://nww.einvoice-prod.sbs.nhs.uk:8179/invoicepdf/c1846123-20f6-50bb-925b-6b712b906062,DN32 7DH,17169
Department of Health,NHS North East Lincolnshire CCG,4/30/2022,Clinical&Medical-Independent Sector,COMMUNITY SERVICES,CARE PLUS GROUP LTD,40568682,"38,017.00",,DN32 7DH,17169
Department of Health,NHS North East Lincolnshire CCG,4/30/2022,Clinical&Medical-Not For Profit,COMMUNITY SERVICES,CARE PLUS GROUP LTD,40568682,"1,406,646.42",,DN32 7DH,17169
Department of Health,NHS North East Lincolnshire CCG,4/30/2022,Soc Care-Other Soc Care,ASC SLA/CONTRACTS,CARE PLUS GROUP LTD,40568682,"284,859.58",,DN32 7DH,17169
Department of Health,NHS North East Lincolnshire CCG,4/30/2022,Clinical&Medical-Independent Sector,PLANNED CARE,HCRG CARE EAST RIDING LLP,40568692,"100,000.00",,WA7 4QX,301213282
Department of Health,NHS North East Lincolnshire CCG,4/30/2022,C&M- PCN DES CARE HOME PREMIUM,PRC DELEGATED CO-COMMISSIONING,BEACON MEDICAL,40586530,"2,230.00",C&M-PMS PCN DES Care Home Premium,DN35 8EB,G07000057907
Department of Health,NHS North East Lincolnshire CCG,4/30/2022,C&M-PMS Contract Value,PRC DELEGATED CO-COMMISSIONING,BEACON MEDICAL,40586530,"110,609.69",Expend Balance - PMS Baseline (PMS),DN35 8EB,G07000057907
Department of Health,NHS North East Lincolnshire CCG,4/30/2022,C&M-PMS DES Extended Hours Access,PRC DELEGATED CO-COMMISSIONING,BEACON MEDICAL,40586530,"2,877.48",Extended Hours Access DES (PMS),DN35 8EB,G07000057907
Department of Health,NHS North East Lincolnshire CCG,4/30/2022,C&M-PMS DES Learn Dsblty Hlth Chk,PRC DELEGATED CO-COMMISSIONING,BEACON MEDICAL,40586530,980.00,Learning Disability Hlth Chk DES (PMS),DN35 8EB,G07000057907
Department of Health,NHS North East Lincolnshire CCG,4/30/2022,C&M-PMS PCN DES Clinical Director,PRC DELEGATED CO-COMMISSIONING,BEACON MEDICAL,40586530,"1,470.73",C&M-PMS PCN DES Clinical Director,DN35 8EB,G07000057907
Department of Health,NHS North East Lincolnshire CCG,4/30/2022,C&M-PMS PCN DES PCN support,LOCAL ENHANCED SERVICES,BEACON MEDICAL,40586530,"2,997.32",C&M-PMS PCN DES PCN support,DN35 8EB,G07000057907
Department of Health,NHS North East Lincolnshire CCG,4/30/2022,C&M-PMS PCN DES Participation,PRC DELEGATED CO-COMMISSIONING,BEACON MEDICAL,40586530,"3,859.10",C&M-PMS PCN DES Participation,DN35 8EB,G07000057907
Department of Health,NHS North East Lincolnshire CCG,4/30/2022,C&M-PMS Prem Rates,PRC DELEGATED CO-COMMISSIONING,BEACON MEDICAL,40586530,"2,061.75",Rates - non domestic (PMS),DN35 8EB,G07000057907
Department of Health,NHS North East Lincolnshire CCG,4/30/2022,C&M-PMS WAF Security Funding,PRC DELEGATED CO-COMMISSIONING,BEACON MEDICAL,40586530,"10,884.00",APMS WAF WAF Security Funding (Adjustments),DN35 8EB,G07000057907
Department of Health,NHS North East Lincolnshire CCG,4/30/2022,C&M-PMS WEIGHT MANAGEMENT SERVICE,PRC DELEGATED CO-COMMISSIONING,BEACON MEDICAL,40586530,34.50,PMS Weight Management Service,DN35 8EB,G07000057907
Department of Health,NHS North East Lincolnshire CCG,4/30/2022,C&M-PMS Contract Value,PRC DELEGATED CO-COMMISSIONING,RAJ MEDICAL CENTRE,40586534,"51,606.97",Expend Balance - PMS Baseline (PMS),DN34 5LP,G07000057975
Department of Health,NHS North East Lincolnshire CCG,4/30/2022,C&M-PMS PCN DES Participation,PRC DELEGATED CO-COMMISSIONING,RAJ MEDICAL CENTRE,40586534,"1,793.66",C&M-PMS PCN DES Participation,DN34 5LP,G07000057975
Department of Health,NHS North East Lincolnshire CCG,4/30/2022,C&M-PMS WAF Security Funding,PRC DELEGATED CO-COMMISSIONING,RAJ MEDICAL CENTRE,40586534,"6,456.00",APMS WAF WAF Security Funding (Adjustments),DN34 5LP,G07000057975
Department of Health,NHS North East Lincolnshire CCG,4/30/2022,ME - PMS GP Prior Year ERs,PRC DELEGATED CO-COMMISSIONING,RAJ MEDICAL CENTRE,40586534,"1,949.38",GP Prior Year ERs (PMS),DN34 5LP,G07000057975
Department of Health,NHS North East Lincolnshire CCG,4/30/2022,ME-PMS GP Prior Year EEs,PRC DELEGATED CO-COMMISSIONING,RAJ MEDICAL CENTRE,40586534,"1,965.66",GP Prior Year EEs (PMS),DN34 5LP,G07000057975
Department of Health,NHS North East Lincolnshire CCG,4/30/2022,C&M- PCN DES CARE HOME PREMIUM,PRC DELEGATED CO-COMMISSIONING,SCARTHO MEDICAL CENTRE,40586537,"2,070.00",C&M-PMS PCN DES Care Home Premium,DN33 3JF,G07000058044
Department of Health,NHS North East Lincolnshire CCG,4/30/2022,C&M-PMS Contract Value,PRC DELEGATED CO-COMMISSIONING,SCARTHO MEDICAL CENTRE,40586537,"115,327.20",Expend Balance - PMS Baseline (PMS),DN33 3JF,G07000058044
Department of Health,NHS North East Lincolnshire CCG,4/30/2022,C&M-PMS DES Extended Hours Access,PRC DELEGATED CO-COMMISSIONING,SCARTHO MEDICAL CENTRE,40586537,"2,840.28",Extended Hours Access DES (PMS),DN33 3JF,G07000058044
Department of Health,NHS North East Lincolnshire CCG,4/30/2022,C&M-PMS DES Learn Dsblty Hlth Chk,PRC DELEGATED CO-COMMISSIONING,SCARTHO MEDICAL CENTRE,40586537,420.00,Learning Disability Hlth Chk DES (PMS),DN33 3JF,G07000058044
Department of Health,NHS North East Lincolnshire CCG,4/30/2022,C&M-PMS PCN DES Clinical Director,PRC DELEGATED CO-COMMISSIONING,SCARTHO MEDICAL CENTRE,40586537,"1,451.68",C&M-PMS PCN DES Clinical Director,DN33 3JF,G07000058044
Department of Health,NHS North East Lincolnshire CCG,4/30/2022,C&M-PMS PCN DES PCN support,LOCAL ENHANCED SERVICES,SCARTHO MEDICAL CENTRE,40586537,"2,958.57",C&M-PMS PCN DES PCN support,DN33 3JF,G07000058044
Department of Health,NHS North East Lincolnshire CCG,4/30/2022,C&M-PMS PCN DES Participation,PRC DELEGATED CO-COMMISSIONING,SCARTHO MEDICAL CENTRE,40586537,"4,001.54",C&M-PMS PCN DES Participation,DN33 3JF,G07000058044
Department of Health,NHS North East Lincolnshire CCG,4/30/2022,C&M-PMS Prem Rates,PRC DELEGATED CO-COMMISSIONING,SCARTHO MEDICAL CENTRE,40586537,"2,944.00",Rates - non domestic (PMS),DN33 3JF,G07000058044
Department of Health,NHS North East Lincolnshire CCG,4/30/2022,C&M-PMS WEIGHT MANAGEMENT SERVICE,PRC DELEGATED CO-COMMISSIONING,SCARTHO MEDICAL CENTRE,40586537,138.00,PMS Weight Management Service,DN33 3JF,G07000058044
Department of Health,NHS North East Lincolnshire CCG,4/30/2022,C&M-PMS Contract Value,PRC DELEGATED CO-COMMISSIONING,DR GG DE & PARTNERS,40586540,"37,516.49",Expend Balance - PMS Baseline (PMS),DN312BH,G07000058667
Department of Health,NHS North East Lincolnshire CCG,4/30/2022,C&M-PMS DES Learn Dsblty Hlth Chk,PRC DELEGATED CO-COMMISSIONING,DR GG DE & PARTNERS,40586540,840.00,Learning Disability Hlth Chk DES (PMS),DN312BH,G07000058667
Department of Health,NHS North East Lincolnshire CCG,4/30/2022,C&M-PMS PCN DES Participation,PRC DELEGATED CO-COMMISSIONING,DR GG DE & PARTNERS,40586540,"1,321.58",C&M-PMS PCN DES Participation,DN312BH,G07000058667
Department of Health,NHS North East Lincolnshire CCG,4/30/2022,C&M-PMS WAF Security Funding,PRC DELEGATED CO-COMMISSIONING,DR GG DE & PARTNERS,40586540,"2,600.00",APMS WAF WAF Security Funding (Adjustments),DN312BH,G07000058667
Department of Health,NHS North East Lincolnshire CCG,4/30/2022,C&M-PMS WEIGHT MANAGEMENT SERVICE,PRC DELEGATED CO-COMMISSIONING,DR GG DE & PARTNERS,40586540,34.50,PMS Weight Management Service,DN312BH,G07000058667
Department of Health,NHS North East Lincolnshire CCG,4/30/2022,C&M-PMS Prem Actual Rent,PRC DELEGATED CO-COMMISSIONING,NAVIGO,40593030,"149,179.40",https://nww.einvoice-prod.sbs.nhs.uk:8179/invoicepdf/1d9702e8-8506-5160-bc55-88a0e0a68583,DN32 0QE,SALINV7017
Department of Health,NHS North East Lincolnshire CCG,4/30/2022,CLINICAL AND MEDICAL GOODS & SERVICES - HOSPITAL DISCHARGE PROGRAMME,COMMUNITY SERVICES,CARE PLUS GROUP LTD,40593044,"87,434.39",https://nww.einvoice-prod.sbs.nhs.uk:8179/invoicepdf/1c6132b4-1ae6-5ed2-9784-4553e8cb7744,DN32 7DH,17136
Department of Health,NHS North East Lincolnshire CCG,4/30/2022,Hcare Srv Rec NHS Trust-Contract Baseline,AMBULANCE SERVICES,EAST MIDLANDS AMBULANCE SERVICE NHS TRUST,40625736,"560,667.00",East Midlands Ambulance Service NHS Trust SLA April 2022,NG18 4RG,5709264ARP22
Department of Health,NHS North East Lincolnshire CCG,4/30/2022,Hcare Srv Rec NHS Trust-Contract Baseline,ACUTE COMMISSIONING,HULL UNIVERSITY TEACHING HOSPITAL NHS TRUST,40625739,"835,250.00",Hull University Teaching Hospitals NHS Trust SLA April 2022,BB3 0FG,5702853APR22
Department of Health,NHS North East Lincolnshire CCG,4/30/2022,Hcare Srv Rec Fdtn Trust-Contract Baseline,ACUTE COMMISSIONING,NORTHERN LINCOLNSHIRE AND GOOLE HOSPITALS NHS FOUNDATION TRUST,40625744,"10,355,917.00",Northern Lincolnshire And Goole NHS Foundation Trust SLA April 2022,DN33 2BA,527796APR22
Department of Health,NHS North East Lincolnshire CCG,4/30/2022,Hcare Srv Rec Fdtn Trust-Contract Baseline,ACUTE COMMISSIONING,SHEFFIELD TEACHING HOSPITALS NHS FOUNDATION TRUST,40625748,"83,583.00",Sheffield Teaching Hospitals NHS Foundation Trust SLA April 2022,S5 7AU,210286APR22
Department of Health,NHS North East Lincolnshire CCG,4/30/2022,Hcare Srv Rec NHS Trust-Contract Baseline,ACUTE COMMISSIONING,LEEDS TEACHING HOSPITALS NHS TRUST,40625753,"48,167.00",Leeds Teaching Hospitals NHS Trust SLA April 2022,LS9 7TF,209699APR22
Department of Health,NHS North East Lincolnshire CCG,4/30/2022,Clinical&Medical-Independent Sector,PLANNED CARE,INHEALTH PAIN MANAGEMENT SOLUTIONS LTD,40631797,"92,204.44",https://nww.einvoice-prod.sbs.nhs.uk:8179/invoicepdf/74223560-314f-5a9f-a1e1-0de5c0422c34,HP11 1JL,60647
Department of Health,NHS North East Lincolnshire CCG,4/30/2022,C&M-PMS Funding Differential Review,LOCAL ENHANCED SERVICES,CIRCASSIA LTD,40631902,"65,157.73",,OX4 4GA,51001569
Department of Health,NHS North East Lincolnshire CCG,4/30/2022,Clinical&Medical-Independent Sector,PLANNED CARE,INHEALTH PAIN MANAGEMENT SOLUTIONS LTD,40631980,"48,647.08",https://nww.einvoice-prod.sbs.nhs.uk:8179/invoicepdf/22120947-4fee-5daf-acfa-266efc85972e,HP11 1JL,60667
Department of Health,NHS North East Lincolnshire CCG,4/30/2022,Soc Care-Housing Projects,ASC SUPPORTED LIVING LD,HOUSING & SUPPORT SOLUTIONS LTD,40647703,"26,520.00",,NG24 1LE,101208-13-APR-2022
Department of Health,NHS North East Lincolnshire CCG,4/30/2022,Clinical&Medical-Clinical Other,PRC DELEGATED CO-COMMISSIONING,SCARTHO MEDICAL CENTRE,40656020,"27,000.00",,DN33 3JF,GEN2122007
Department of Health,NHS North East Lincolnshire CCG,4/30/2022,CLINICAL AND MEDICAL GOODS & SERVICES - HOSPITAL DISCHARGE PROGRAMME,COMMUNITY SERVICES,CARE PLUS GROUP LTD,40656032,"83,968.97",https://nww.einvoice-prod.sbs.nhs.uk:8179/invoicepdf/325eabfc-3681-5614-a26c-9d8d53c9a61e,DN32 7DH,17097
Department of Health,NHS North East Lincolnshire CCG,4/30/2022,Clinical&Medical-Commercial Sector,PLANNED CARE,ST HUGHS HOSPITAL,40656143,"535,058.00",,DN32 9RP,NHSNELCGMO10422
Department of Health,NHS North East Lincolnshire CCG,4/30/2022,Clinical&Medical-Not For Profit,MENTAL HEALTH CONTRACTS,NAVIGO,40680758,"1,216,232.00",https://nww.einvoice-prod.sbs.nhs.uk:8179/invoicepdf/f5a942bb-b59a-5319-a644-9843082f673d,DN32 0QE,SALINV7016
Department of Health,NHS North East Lincolnshire CCG,4/30/2022,Clinical&Medical-Commercial Sector,ASC PRIORITY 3 AND 4 SERVICES,RETHINK,40680799,"12,089.40",http://nww.docserv.wyss.nhs.uk/synergyiim/dist/?val=4469279_17868591_20220331142356,DY4 7UF,27389
Department of Health,NHS North East Lincolnshire CCG,4/30/2022,Clinical&Medical-Voluntary Sector,MENTAL HEALTH SERVICES - ADVOCACY,RETHINK,40680799,"19,151.39",http://nww.docserv.wyss.nhs.uk/synergyiim/dist/?val=4469279_17868591_20220331142356,DY4 7UF,27389
Department of Health,NHS North East Lincolnshire CCG,4/30/2022,Clinical&Medical-Commercial Sector,ASC CARERS SERVICES,CARERS SUPPORT CENTRE,40680809,"32,145.83",,DN20 8AU,NELY3MTH122122
Department of Health,NHS North East Lincolnshire CCG,4/30/2022,C&M-PMS LES Counselling,LOCAL ENHANCED SERVICES,DR R MATHEWS,40708902,"75,840.00",Panacea (Paying Dr Mathews) Panacea PCN Low Level Mental Health Provision 21/22 Oct - Mar 22,DN313AE,MHLL22M11
Department of Health,NHS North East Lincolnshire CCG,4/30/2022,C&M-PMS LES LTC Case Management,LOCAL ENHANCED SERVICES,HUMBERVIEW SURGERY,40709737,"32,534.11",Freshney Pelham (Paying Humberview) Enhanced Primary Care Condition Monies April 22,DN313AE,APR22EPC1
Department of Health,NHS North East Lincolnshire CCG,4/30/2022,C&M-PMS LES LTC Case Management,LOCAL ENHANCED SERVICES,ROXTON PRACTICE,40709741,"31,964.64",Meridian (Paying Roxton) Enhanced Primary Care Condition Monies April 22,DN40 1JW,APR22EPC2
Department of Health,NHS North East Lincolnshire CCG,4/30/2022,C&M-PMS LES LTC Case Management,LOCAL ENHANCED SERVICES,DR R MATHEWS,40709745,"38,949.41",Panacea (Paying Dr Mathews) Enhanced Primary Care Condition Monies April 22,DN313AE,APR22EPC3
Department of Health,NHS North East Lincolnshire CCG,4/30/2022,Recharge : Provided,NON RECURRENT PROGRAMMES,CLARITY INFORMATICS LTD,40713510,"202,238.16",,NE28 9NX,INV7219
Department of Health,NHS North East Lincolnshire CCG,4/30/2022,Recharge : Provided,NON RECURRENT PROGRAMMES,CLARITY INFORMATICS LTD,40713519,"95,288.03",,NE28 9NX,INV7220
Department of Health,NHS North East Lincolnshire CCG,4/30/2022,Recharge : Provided,NON RECURRENT PROGRAMMES,ORCHA HEALTH LTD,40713532,"399,997.20",,WA4 4AB,INV0744
Department of Health,NHS North East Lincolnshire CCG,4/30/2022,Recharge : Provided,NON RECURRENT PROGRAMMES,NORTH YORKSHIRE COUNTY COUNCIL,40713541,"50,000.00",,DL7 8AL,360003851
Department of Health,NHS North East Lincolnshire CCG,4/30/2022,Clinical&Medical-Othe Public Sector,CHILD AND ADOLESCENT MENTAL HEALTH,NORTH EAST LINCOLNSHIRE COUNCIL,40713573,"228,093.00",,DN31 1HU,S2018930
Department of Health,NHS North East Lincolnshire CCG,4/30/2022,Clinical&Medical-Othe Public Sector,COMMISSIONING - NON ACUTE,NORTH EAST LINCOLNSHIRE COUNCIL,40713573,"246,500.00",,DN31 1HU,S2018930
Department of Health,NHS North East Lincolnshire CCG,4/30/2022,Clinical&Medical-Independent Sector,COMMUNITY SERVICES,FRESHNEY PELHAM CARE LTD,40713622,"112,750.00",https://nww.einvoice-prod.sbs.nhs.uk:8179/invoicepdf/42c09ce2-f5e6-504a-8925-4b1b87f6b25f,DN34 4GB,1991
Department of Health,NHS North East Lincolnshire CCG,4/30/2022,Clinical&Medical-Independent Sector,ACUTE COMMISSIONING,NEW MEDICAL SYSTEMS LTD,40713645,"179,008.55",https://nww.einvoice-prod.sbs.nhs.uk:8179/invoicepdf/f074aeb8-be14-5cd4-8d98-b9089ffb5ab2,SE1 6ES,00006393
Department of Health,NHS North East Lincolnshire CCG,4/30/2022,Clinical&Medical-Independent Sector,COMMUNITY SERVICES,FRESHNEY PELHAM CARE LTD,40713681,"-112,750.00",https://nww.einvoice-prod.sbs.nhs.uk:8179/invoicepdf/5f44f43f-3479-5dd4-bba7-b58fe1b40e6a,DN34 4GB,2
Department of Health,NHS North East Lincolnshire CCG,4/30/2022,C&M- PCN DES CARE COORDINATOR,PRC DELEGATED CO-COMMISSIONING,DR R MATHEWS,40719810,"29,463.62",Panacea (Paying Dr Mathews) ARRS Scheme 2021/22 Monthly Monies Portal Mar-22 ARRS-134887,DN313AE,ARRSAPR2210
Department of Health,NHS North East Lincolnshire CCG,4/30/2022,Clinical&Medical-Not For Profit,COMMUNITY SERVICES,FOCUS INDEPENDENT ADULT SOCIAL WORK CIC,40729818,"100,800.00",,DN31 1SY,4498
Department of Health,NHS North East Lincolnshire CCG,4/30/2022,C&M-PMS QOF Aspiration,PRC DELEGATED CO-COMMISSIONING,ROXTON PRACTICE,40756588,"29,278.29",Aspiration (PMS),DN40 1JW,G07000063535
Department of Health,NHS North East Lincolnshire CCG,4/30/2022,C&M-PMS Cost of Drugs -Dispensing,LOCAL ENHANCED SERVICES,ROXTON PRACTICE,40756589,"72,084.28",Dispensing GPs - Cost of Drugs (PMS),DN40 1JW,G07000063536
Department of Health,NHS North East Lincolnshire CCG,4/30/2022,C&M-PMS Prof fees Dispensing,PRC DELEGATED CO-COMMISSIONING,ROXTON PRACTICE,40756589,"18,367.92",Dispensing GPs - Professional Fees (PMS),DN40 1JW,G07000063536
Department of Health,NHS North East Lincolnshire CCG,4/30/2022,Clinical&Medical-Othe Public Sector,CHILD AND ADOLESCENT MENTAL HEALTH,NORTH EAST LINCOLNSHIRE COUNCIL,40757346,"272,907.25",,DN31 1HU,38000742
Department of Health,NHS North East Lincolnshire CCG,4/30/2022,Clinical&Medical-Othe Public Sector,CHILDREN AND YOUNG PERSONS PALLIATIVE CARE,NORTH EAST LINCOLNSHIRE COUNCIL,40757346,"12,437.25",,DN31 1HU,38000742
Department of Health,NHS North East Lincolnshire CCG,4/30/2022,Clinical&Medical-Othe Public Sector,COMMISSIONING - NON ACUTE,NORTH EAST LINCOLNSHIRE COUNCIL,40757346,"37,413.50",,DN31 1HU,38000742
Department of Health,NHS North East Lincolnshire CCG,4/30/2022,Computer Software/License,ASC COMMUNITY CONTRACTS,PHOENIX PARTNERSHIP (LEEDS) LTD,40793114,"72,983.94",,LS18 5PX,13506
Department of Health,NHS North East Lincolnshire CCG,4/30/2022,Computer Software/License,PRIMARY CARE IT,PHOENIX PARTNERSHIP (LEEDS) LTD,40793114,"146,286.93",https://nww.einvoice-prod.sbs.nhs.uk:8179/invoicepdf/37bd4a57-ad0a-5677-9155-f0d5909aae00,LS18 5PX,13506
Department of Health,NHS North East Lincolnshire CCG,4/30/2022,Computer Software/License,PRIMARY CARE IT,PHOENIX PARTNERSHIP (LEEDS) LTD,40793114,"29,257.39",,LS18 5PX,13506
Department of Health,NHS North East Lincolnshire CCG,4/30/2022,Clinical&Medical-Othe Public Sector,CHILD AND ADOLESCENT MENTAL HEALTH,NORTH EAST LINCOLNSHIRE COUNCIL,40793129,"30,917.70",,DN31 1HU,S2000385
Department of Health,NHS North East Lincolnshire CCG,4/30/2022,Recharge : Provided,NON RECURRENT PROGRAMMES,ACCURX LTD,40793155,"38,753.74",https://nww.einvoice-prod.sbs.nhs.uk:8179/invoicepdf/75a2c0ac-639b-5166-a6f5-11e2b34af26c,N1 5AA,PLUS02972
Department of Health,NHS North East Lincolnshire CCG,4/30/2022,Clinical&Medical-Clinical Other,PATIENT TRANSPORT,THAMES AMBULANCE SERVICE LTD,40809903,"88,508.06",https://nww.einvoice-prod.sbs.nhs.uk:8179/invoicepdf/bf1bab16-d451-5d05-b969-15a82d8b8427,LN6 3AH,22680
Department of Health,NHS North East Lincolnshire CCG,4/30/2022,Clinical&Medical-Clinical Other,PATIENT TRANSPORT,THAMES AMBULANCE SERVICE LTD,40809917,"28,611.06",https://nww.einvoice-prod.sbs.nhs.uk:8179/invoicepdf/045160b8-70ce-5746-8c60-53f05979ad89,LN6 3AH,22682
